[Event "3rd Rio Open 2024"]
[Site "Rio de Janeiro"]
[Date "2024.04.25"]
[Round "4.4"]
[White "Piccoli, Lucas Fonseca"]
[Black "Souza, Iago Henrique da Sil"]
[Result "1-0"]
[ECO "B12"]
[WhiteElo "2274"]
[BlackElo "2052"]
[Annotator "TA"]
[PlyCount "67"]
[EventDate "2024.04.12"]
[EventType "swiss"]
[EventCountry "BRA"]
[SourceTitle "playchess.com"]
[Source "ChessBase"]
[SourceQuality "1"]
[TimeControl "5400+30"]

{[%evp 11,67,11,12,0,-2,-7,0,-21,-14,-29,-12,-14,-17,-6,243,220,252,285,438,431,481,406,523,509,575,568,477,472,795,440,507,455,508,508,500,503,510,495,439,373,382,338,441,436,464,400,385,371,455,421,467,447,579,565,1055,1026,1510,921]} 1. e4 {[%emt 0:02:03]} c6 {[%emt 0:00:18]} 2. d4 {[%emt 0:00:09]} d5 {[%emt 0:00:07]} 3. e5 {[%emt 0:00:06]} Bf5 {[%emt 0:00:48]} 4. h4 {[%emt 0:00:11]} h5 {[%emt 0:01:11]} 5. Bd3 {[%emt 0:00:06]} Bxd3 {[%emt 0:00:21]} 6. Qxd3 {[%emt 0:00:09]} e6 {[%emt 0:00:18]} 7. Bg5 {[%emt 0:00:15]} Qb6 {[%emt 0:01:27]} 8. Nd2 {[%emt 0:00:07] Active counter play!} c5 {[%emt 0:01:59]} 9. c4 {[%emt 0:00:06] The position is equal.} Qxb2 {[%emt 0:00:04]} 10. Rd1 {[%emt 0:02:37] [#] aiming for cxd5.} Nc6 {[%emt 0:00:50]} (10... Qxa2 $6 11. Ne2 $14) 11. Ne2 {[%emt 0:01:17]} Nb4 {[%emt 0:06:49]} 12. Qf3 {[%emt 0:00:40]} cxd4 $2 {[%emt 0:07:50] [#]} (12... Nc2+ $11 13. Kf1 Nxd4 14. Nxd4 Qxd4) 13. O-O $1 $18 {[%emt 0:16:32]} d3 {[%emt 0:01:35]} 14. Nf4 {[%emt 0:03:07][%csl LRd3,LRd5,LRh5][%cal Rc4d5]} Be7 {[%emt 0:13:15]} (14... Qxe5 $142 15. cxd5 (15. Nxh5 $2 Qe2 $19) 15... Nxd5) 15. cxd5 {[%emt 0:03:25]} exd5 {[%emt 0:38:11]} 16. Rb1 {[%emt 0:22:02]} (16. Nxd3 Nxd3 17. Qxd3 Bxg5 $18) (16. Nxd5 Nxd5 17. Nc4 (17. Qxd5 Rd8 $11) 17... Qb5 (17... Qxa2 $2 18. Qxd5 Kf8 19. Rxd3 $18) 18. Qxd3 Qc6 $18) 16... Qd4 {[%emt 0:04:50]} 17. a3 {[%emt 0:02:23]} Bxg5 {[%emt 0:00:20]} 18. Rxb4 {[%emt 0:00:33]} Qxe5 {[%emt 0:05:12] And now ...Bxf4 would win.} 19. Nxd3 {[%emt 0:06:52]} (19. hxg5 Ne7 20. Qxd3 Rb8 21. Qb5+ (21. Nf3 Qd6 $18) 21... Nc6) 19... Qc3 {[%emt 0:03:28]} (19... Qd6 $142 20. hxg5 Ne7) 20. Nb1 {[%emt 0:00:41]} (20. Qxd5 Bxd2 21. Ne5 Nh6 $18) 20... Qf6 {[%emt 0:01:08]} 21. hxg5 {[%emt 0:06:58]} Qxf3 {[%emt 0:01:54]} 22. gxf3 {[%emt 0:00:07]} b6 {[%emt 0:00:37]} 23. Re1+ {[%emt 0:00:54]} Kf8 {[%emt 0:00:34]} 24. Nc3 {[%emt 0:01:15]} Ne7 {[%emt 0:00:33]} 25. Rd4 {[%emt 0:01:30]} Rd8 {[%emt 0:00:46]} 26. Nb4 {[%emt 0:00:29]} g6 {[%emt 0:00:36]} 27. Nbxd5 {[%emt 0:02:51]} Nf5 {[%emt 0:01:44]} 28. Rc4 {[%emt 0:00:20]} Kg7 {[%emt 0:00:43]} 29. Rc7 {[%emt 0:02:02]} a5 {[%emt 0:00:36]} 30. Re4 {[%emt 0:03:22] White is clearly winning.} ({Don't take} 30. Nxb6 Rd3 31. Nd7 Nh4 $18) 30... Rd6 {[%emt 0:01:42]} 31. Nf6 {[%emt 0:01:36]} Rdd8 {[%emt 0:03:13] Prevents Ne8+} 32. Ncd5 {[%emt 0:00:31][%cal Od5f4] Hoping for Nf4!} b5 {[%emt 0:00:45]} 33. Nf4 {[%emt 0:02:19][%csl Ge4][%cal Rf4e6]} Rd1+ {[%emt 0:00:46]} 34. Kh2 {[%emt 0:19:55] Black did not feel at home in the position after the opening.   Weighted Error Value: White=0.34/Black=0.52.  Loses game:     	---       	Black=1      Mistake:       	---       	Black=2      Inaccurate:     	White=1     	Black=3      OK:         	White=11    	Black=10     Best:        	White=2     	Black=1      Strong:       	White=1     	---} 1-0

[Event "3rd Rio Open 2024"]
[Site "Rio de Janeiro"]
[Date "2024.04.25"]
[Round "4.5"]
[White "Ribeiro, Matheus Mendes Domin"]
[Black "De Souza Monteiro, Marcos Paulo"]
[Result "1-0"]
[ECO "A11"]
[WhiteElo "2228"]
[BlackElo "1893"]
[Annotator "TA"]
[PlyCount "107"]
[EventDate "2024.04.12"]
[EventType "swiss"]
[EventCountry "BRA"]
[SourceTitle "playchess.com"]
[Source "ChessBase"]
[SourceQuality "1"]
[TimeControl "5400+30"]

{[%evp 13,107,0,17,-13,-6,-32,0,-5,0,0,35,-18,0,0,0,0,0,-218,-216,-200,-205,-206,-203,-207,-58,-50,-61,-49,-75,-161,-54,-48,-44,-55,-54,-53,-49,-61,-57,-52,0,-48,0,-102,0,-163,-60,-104,-64,-41,0,0,17,14,14,24,59,0,25,14,130,123,213,92,170,0,346,343,341,297,395,174,207,203,266,154,338,337,353,345,448,444,482,461,525,501,675,645,714,699,1178,1187,5720,5651,3021,2923]} 1. c4 {[%emt 0:07:48]} c6 {[%emt 0:00:48]} 2. Nf3 {[%emt 0:00:13]} d5 {[%emt 0:00:29]} 3. e3 {[%emt 0:00:14]} Nf6 {[%emt 0:00:42]} 4. Nc3 {[%emt 0:00:15]} e6 {[%emt 0:00:56]} 5. b3 {[%emt 0:00:39]} Nbd7 {[%emt 0:01:01]} 6. Bb2 {[%emt 0:00:23]} Bd6 {[%emt 0:00:43]} 7. Qc2 {[%emt 0:00:27]} O-O {[%emt 0:03:19]} 8. Rg1 {[%emt 0:00:05]} e5 {[%emt 0:10:35]} 9. cxd5 {[%emt 0:00:04]} (9. g4 $5) 9... cxd5 {[%emt 0:00:09]} 10. Nb5 {[%emt 0:00:03] The position is equal.} Bb8 {[%emt 0:00:51]} 11. Rc1 {[%emt 0:00:28]} d4 {[%emt 0:18:52]} 12. Ng5 {[%emt 0:14:06]} (12. Nc7 $14 Bxc7 13. Qxc7) 12... Nb6 {[%emt 0:20:34]} (12... a6 $5 13. Ba3 dxe3 (13... axb5 14. Bxf8 Nxf8 15. Qxc8 $14) 14. dxe3 axb5 15. Bxf8 Nxf8 16. Qxc8 Qa5+ 17. Qc3 Qxc3+ 18. Rxc3 Rxa2 $15) 13. Ba3 {[%emt 0:29:07]} Re8 {[%emt 0:00:40] ...h6 would now be deadly.} 14. Bd3 {[%emt 0:00:58][%cal Rd3h7]} e4 {[%emt 0:17:20]} 15. Bc4 $2 {[%emt 0:09:35] [#]} (15. Bxe4 $2 Nxe4 16. Nxe4 d3 $19 (16... Bxh2 17. Rh1 $11)) (15. Nxe4 $11 {and White is okay.} Nxe4 16. Bxe4) 15... Nfd5 $1 $19 {[%emt 0:08:21]} (15... Bxh2 $2 16. Nxf7 Nxc4 17. Nxd8 $18) (15... Nxc4 16. Qxc4 Qd7 (16... Bxh2 $2 17. Qxf7+ Kh8 18. Qc4 $18) (16... Nd5 17. Nd6 $11) 17. Nc7 Bxc7 18. Qxc7 $17) 16. Nxe4 {[%emt 0:13:22]} Bf5 {[%emt 0:04:25]} (16... Bxh2 17. Rh1 Bf5 18. Bd3 $17) 17. Bd3 {[%emt 0:06:27]} dxe3 {[%emt 0:01:33]} (17... Bxh2 18. Rh1 Rc8 19. Qb1 Rxc1+ 20. Qxc1) 18. dxe3 {[%emt 0:02:01]} Bxe4 {[%emt 0:02:07]} (18... Qh4 $1 $19 {[%cal Od5e3] White must now prevent ...Nxe3!} 19. Ke2 Bxe4 (19... Rxe4 20. Bxe4 Qxe4 21. Qxe4 $11) 20. Bxe4 Qxe4 (20... Rxe4 21. Qc8+ Nxc8 22. Rxc8+) 21. Qxe4 Rxe4) 19. Bxe4 $15 {[%emt 0:00:41]} Qh4 {[%emt 0:01:18]} 20. Bxd5 {[%emt 0:02:40]} Nxd5 {[%emt 0:00:08]} 21. Qc4 {[%emt 0:02:06]} (21. Kf1 $17 {is a better defense.}) 21... Nxe3 {[%emt 0:05:28]} (21... Qxh2 22. Kf1 Qh5 23. Nd4 $17) (21... Bf4 $19 22. Kf1 (22. Qxd5 $2 Bxe3 23. Kd1 Qxf2 $19) 22... Qh5) 22. Qxh4 {[%emt 0:00:34]} Nxg2+ {[%emt 0:00:01]} 23. Kf1 {[%emt 0:01:49]} Nxh4 {[%emt 0:00:03]} 24. Rg4 {[%emt 0:04:09] Against Bf4} Nf3 {[%emt 0:00:31]} 25. Kg2 {[%emt 0:00:26]} Ne1+ {[%emt 0:00:50]} (25... Nxh2 $2 26. Re4 Be5 (26... Rxe4 27. Rc8+) 27. Bd6 $18) 26. Kf1 {[%emt 0:00:07][%cal Og4e4]} Nf3 {[%emt 0:00:02]} 27. Kg2 {[%emt 0:01:34]} Ne1+ {[%emt 0:00:02]} (27... Nxh2 $2 28. Re4 Be5 (28... Rxe4 29. Rc8+) 29. Bd6 $18) (27... h5 $15 {should be considered.} 28. Ra4 Ne1+ (28... Nxh2 29. Nc7 $15) 29. Kf1 Nf3) 28. Kg1 {[%emt 0:02:29]} (28. Kf1 $11 {remains equal.} h5 29. Ra4) 28... Nf3+ {[%emt 0:00:16]} (28... Nd3 $17 29. Rd1 Ne5) 29. Kh1 $2 {[%emt 0:01:20]} (29. Kg2 $11 Ne1+ (29... Nxh2 $2 30. Re4 $18)) 29... Be5 {[%emt 0:00:54]} (29... Nxh2 30. Re4 Be5 (30... Rxe4 31. Rc8+) 31. Nc7 Bxc7 32. Rxe8+ Rxe8 33. Rxc7 $14) (29... Bxh2 30. Kg2 a6 31. Nc3) (29... h5 $1 $19 {[%cal Rh5g4]} 30. Rb4 a5 (30... Bxh2 31. Rc3 $15) (30... Nxh2 31. Nc7 $11)) 30. Nc7 {[%emt 0:00:24]} Bxc7 {[%emt 0:01:56]} ({But not} 30... Nxh2 $6 31. Rb4 Bxc7 32. Rxc7 $14) 31. Rxc7 {[%emt 0:00:04][%cal Og4f4]} Rac8 {[%emt 0:00:19]} 32. Re4 {[%emt 0:00:53]} Rcd8 {[%emt 0:00:38]} 33. Rxe8+ {[%emt 0:00:34]} Rxe8 {[%emt 0:00:01]} 34. Rxb7 $11 {[%emt 0:00:10][%mdl 4096] Endgame. KRB-KRN} Nh4 {[%emt 0:00:31][%cal Re8e1] [#]} 35. h3 {[%emt 0:00:07]} (35. Rxa7 $2 Re1#) ({Better is} 35. Be7 $1 $14 Nf5 36. Bb4) 35... h6 {[%emt 0:00:13]} 36. Rxa7 {[%emt 0:00:17]} Re2 {[%emt 0:01:19]} (36... Re1+ $11 {keeps the balance.} 37. Kh2 f5) 37. Bc5 $16 {[%emt 0:00:04]} Nf3 {[%emt 0:00:19]} (37... Rb2 $16 38. b4 Nf3) 38. Be3 {[%emt 0:00:41]} (38. b4 $18 {has better winning chances. Threatens to win with a4.} Rc2 39. Ra3) 38... g5 {[%emt 0:00:32]} (38... Re1+ $16 39. Kg2 Nh4+ 40. Kh2 Rd1) 39. a4 $2 {[%emt 0:01:18]} (39. Kg2 $18 Nh4+ 40. Kf1) 39... f5 $2 {[%emt 0:00:34][%mdl 8192]} (39... Re1+ $1 $11 {and Black stays safe.} 40. Kg2 Nh4+ 41. Kh2 f5) 40. Kg2 $18 {[%emt 0:00:16]} Nh4+ {[%emt 0:00:02]} 41. Kf1 {[%emt 0:00:05]} Rb2 {[%emt 0:00:06]} 42. Rb7 {[%emt 0:00:45]} (42. a5 $142) 42... f4 {[%emt 0:00:30]} 43. Bd4 {[%emt 0:00:10]} Rd2 {[%emt 0:00:46]} 44. Bc5 {[%emt 0:00:41]} (44. Bb6 $18) 44... f3 $2 {[%emt 0:01:00]} (44... Ra2 $16 45. Rb4 Kf7) 45. Kg1 {[%emt 0:00:15]} Ng6 {[%emt 0:00:41]} 46. Kh2 {[%emt 0:00:24]} Nf4 {[%emt 0:00:31]} 47. Kg3 {[%emt 0:00:10] White is clearly winning.} Nd3 {[%emt 0:00:29]} 48. Be3 {[%emt 0:00:09]} Rb2 {[%emt 0:00:24]} 49. Kxf3 {[%emt 0:00:11]} Ne1+ {[%emt 0:00:31]} 50. Kg4 {[%emt 0:00:23]} Nd3 {[%emt 0:00:21]} 51. a5 {[%emt 0:00:35]} Ne5+ {[%emt 0:00:32]} 52. Kf5 {[%emt 0:00:21]} Nf7 {[%emt 0:00:31]} 53. Rb8+ {[%emt 0:00:29]} Kh7 {[%emt 0:00:09]} 54. Ke6 {[%emt 0:00:31] White used his chance.   Weighted Error Value: White=0.44/Black=0.59.  Loses game:     	White=2     	Black=2      Missed win:     	White=1     	---        Mistake:       	White=7     	Black=8      Inaccurate:     	White=2     	Black=8      OK:         	White=20    	Black=11     Best:        	White=4     	Black=1      Strong:       	---       	Black=1} 1-0

[Event "3rd Rio Open 2024"]
[Site "Rio de Janeiro"]
[Date "2024.04.25"]
[Round "5.1"]
[White "Matsuura, Everaldo"]
[Black "Fier, Alexandr"]
[Result "0-1"]
[ECO "A35"]
[WhiteElo "2380"]
[BlackElo "2566"]
[Annotator "TA"]
[PlyCount "106"]
[EventDate "2024.04.12"]
[EventType "swiss"]
[EventCountry "BRA"]
[SourceTitle "playchess.com"]
[Source "ChessBase"]
[SourceQuality "1"]
[TimeControl "5400+30"]

{[%evp 22,106,26,24,25,0,0,15,23,0,0,0,22,0,31,0,51,0,25,-32,-32,-38,-34,-29,-29,-26,-16,-15,-14,-31,-11,-14,0,0,0,0,0,0,0,-12,-15,-25,0,-29,0,0,0,0,0,0,0,0,0,0,0,0,0,0,0,0,0,-80,-79,-212,-212,-50,-209,-218,-208,-299,-297,-445,-193,-205,-168,-405,-258,-257,-87,-258,-258,-255,-255,-4618,-4614,-29985,-29986]} 1. c4 {[%emt 0:00:44]} Nf6 {[%emt 0:00:44]} 2. Nc3 {[%emt 0:00:28]} c5 {[%emt 0:00:05]} 3. Nf3 {[%emt 0:01:58]} Nc6 {[%emt 0:00:20]} 4. e3 {[%emt 0:00:38]} g6 {[%emt 0:00:04]} 5. d4 {[%emt 0:00:30]} cxd4 {[%emt 0:00:04]} 6. exd4 {[%emt 0:00:21]} d5 {[%emt 0:00:04]} 7. cxd5 {[%emt 0:00:42]} Nxd5 {[%emt 0:00:02]} 8. Qb3 {[%emt 0:00:40]} Nxc3 {[%emt 0:00:04]} 9. Bc4 {[%emt 0:00:25]} Nd5 {[%emt 0:00:04]} 10. Bxd5 {[%emt 0:00:14]} e6 {[%emt 0:00:03]} 11. Bxc6+ {[%emt 0:00:30]} bxc6 {[%emt 0:00:03]} 12. O-O {[%emt 0:00:38]} Qd5 {[%emt 0:00:02]} 13. Bf4 {[%emt 0:02:32]} f6 {[%emt 0:00:16]} 14. Rfc1 {[%emt 0:01:41]} g5 {[%emt 0:00:39] The position is equal.} 15. Be3 {[%emt 0:00:56]} Be7 {[%emt 0:00:15]} 16. Nd2 {[%emt 0:05:56]} Kf7 {[%emt 0:05:17]} 17. Qc4 {[%emt 0:08:36]} Bd7 {[%emt 0:02:07]} 18. Nb3 {[%emt 0:04:50]} Rhb8 {[%emt 0:00:33]} (18... Qxc4 $11 19. Rxc4 Rhb8) 19. Rab1 {[%emt 0:02:18]} (19. Qe2 $14) 19... Rb5 {[%emt 0:00:05]} 20. Nc5 {[%emt 0:02:45]} ({White should try} 20. Qe2 $11) 20... Bxc5 $15 {[%emt 0:00:58]} 21. dxc5 {[%emt 0:01:14]} Qxc4 {[%emt 0:00:04]} 22. Rxc4 {[%emt 0:00:25]} e5 {[%emt 0:00:02]} 23. b3 {[%emt 0:01:25]} Be6 {[%emt 0:01:47]} 24. Ra4 {[%emt 0:00:32]} a5 {[%emt 0:00:04]} 25. f3 {[%emt 0:08:52]} Bd5 {[%emt 0:04:51]} 26. Rc1 {[%emt 0:04:45]} Ke6 {[%emt 0:04:19]} 27. Bd2 {[%emt 0:05:55]} h5 {[%emt 0:00:59]} 28. Kf2 {[%emt 0:02:16]} Kf5 {[%emt 0:00:13]} 29. h3 {[%emt 0:01:09]} h4 {[%emt 0:01:01]} 30. Ke3 {[%emt 0:03:09]} Kg6 {[%emt 0:02:54]} 31. b4 {[%emt 0:04:43]} f5 {[%emt 0:01:39][%cal Bf6f5,Bf5f4][%mdl 32]} 32. Rxa5 {[%emt 0:01:00]} Raxa5 {[%emt 0:06:41]} 33. bxa5 $11 {[%emt 0:00:18][%mdl 4096] Endgame. KRB-KRB} Rb2 {[%emt 0:00:02]} 34. a3 {[%emt 0:04:24]} f4+ {[%emt 0:01:10]} 35. Kd3 {[%emt 0:02:00] [#] And now Bb4 would win.} Rb8 {[%emt 0:16:49]} 36. Bc3 {[%emt 0:14:44]} Rd8 {[%emt 0:00:10]} 37. Ke2 {[%emt 0:00:35]} e4 {[%emt 0:00:06]} 38. fxe4 {[%emt 0:00:19]} Bxe4 {[%emt 0:00:03]} 39. Kf2 {[%emt 0:00:44]} Kf5 {[%emt 0:00:04]} 40. a6 {[%emt 0:02:50]} Ra8 {[%emt 0:00:30]} 41. Rd1 {[%emt 0:03:34]} (41. a4 $11 {remains equal.}) 41... Rxa6 $17 {[%emt 0:00:23]} 42. Rd6 {[%emt 0:01:05]} (42. Ra1 $17) 42... Bd5 $1 $19 {[%emt 0:00:02]} (42... Rxa3 43. Rf6#) 43. Rf6+ {[%emt 0:01:51]} Ke4 {[%emt 0:00:05]} 44. Bb4 {[%emt 0:00:37]} Ra8 {[%emt 0:00:02]} 45. Ke2 {[%emt 0:01:16]} (45. Rg6 $142 Kf5 46. Rh6) 45... Re8 {[%emt 0:01:34]} 46. Kf1 {[%emt 0:00:51]} (46. Bc3 $142) 46... Rg8 {[%emt 0:05:44]} (46... Kd3 $142 {Strongly threatening ...Re2.} 47. Be1 Re2) 47. Bd2 {[%emt 0:00:54]} Kd3 {[%emt 0:01:05]} 48. Bb4 {[%emt 0:01:25]} (48. Be1) 48... Ke3 {[%emt 0:00:05] Threatens to win with ...g4.} 49. Be1 {[%emt 0:01:16]} Bc4+ {[%emt 0:01:44]} 50. Kg1 {[%emt 0:00:07] [#]} Ke2 $1 {[%emt 0:00:03]} 51. Bb4 {[%emt 0:00:25]} Bd5 {[%emt 0:00:03] ...Ke3 is the strong threat.} 52. Kh2 $2 {[%emt 0:03:18]} (52. Rf5) 52... Kf1 {[%emt 0:00:14][%cal Og8e8] ( -> ...Re8!)} 53. Rd6 {[%emt 0:00:15]} Re8 {[%emt 0:00:27] Weighted Error Value: White=0.53/Black=0.15 (very precise) .  Loses game:     	White=1     	---        Mistake:       	White=8     	Black=2      Inaccurate:     	White=3     	Black=3      OK:         	White=14    	Black=17     Best:        	---       	Black=3      Strong:       	---       	Black=2} (53... Bxg2 $2 {too greedy.} 54. Rd1+ Ke2 55. Rd2+ Ke3 56. Rxg2 $18 (56. Kxg2 g4 $18)) 0-1

[Event "3rd Rio Open 2024"]
[Site "Rio de Janeiro"]
[Date "2024.04.25"]
[Round "5.2"]
[White "Lima, Stefan Moisei VIeira"]
[Black "Piccoli, Lucas Fonseca"]
[Result "1-0"]
[ECO "E17"]
[WhiteElo "2176"]
[BlackElo "2274"]
[Annotator "TA"]
[PlyCount "139"]
[EventDate "2024.04.12"]
[EventType "swiss"]
[EventCountry "BRA"]
[SourceTitle "playchess.com"]
[Source "ChessBase"]
[SourceQuality "1"]
[TimeControl "5400+30"]

{[%evp 16,139,22,12,29,23,41,39,52,55,56,48,103,108,144,147,137,130,147,119,126,85,148,108,294,118,387,192,270,270,535,104,706,195,691,645,610,497,856,775,968,688,1190,1167,948,923,940,843,750,476,1048,378,433,354,387,299,575,239,237,153,395,384,369,354,528,319,319,319,319,319,313,309,294,232,242,242,228,191,320,246,246,246,412,412,537,529,974,954,8159,4160,11800,10823,2143,1158,7465,7009,29968,29969,29973,29974,29975,5527,4004,2264,29977,29977,29977,29978,29978,29978,29981,29982,29983,29984,29984,29985,29985,29985,29987,29988,29989,29990,29991,29990,29990,29991]} 1. c4 {[%emt 0:00:03]} e6 {[%emt 0:09:12]} 2. g3 {[%emt 0:00:15]} d5 {[%emt 0:00:34]} 3. Bg2 {[%emt 0:00:09]} Nf6 {[%emt 0:01:54]} 4. Nf3 {[%emt 0:00:13]} Be7 {[%emt 0:03:31]} 5. b3 {[%emt 0:01:18]} O-O {[%emt 0:00:54]} 6. O-O {[%emt 0:01:15]} b6 {[%emt 0:00:36]} 7. d4 {[%emt 0:00:08]} Bb7 {[%emt 0:00:14]} 8. Nc3 {[%emt 0:00:55]} Nbd7 {[%emt 0:00:20]} 9. Bb2 {[%emt 0:01:47]} a6 {[%emt 0:01:04]} 10. Rc1 {[%emt 0:15:16]} Bd6 {[%emt 0:00:58]} 11. Nd2 {[%emt 0:01:46]} Ra7 {[%emt 0:07:03] White is slightly better.} 12. e4 {[%emt 0:03:08]} dxe4 {[%emt 0:03:03]} 13. Ndxe4 {[%emt 0:01:08]} Qa8 {[%emt 0:00:18] [#]} (13... Bxe4 $14 14. Nxe4 Nxe4) 14. d5 $1 $16 {[%emt 0:09:02][%mdl 512]} Nxe4 {[%emt 0:26:05]} (14... Bb4 15. a3) 15. Nxe4 {[%emt 0:01:55]} (15. Bxe4 Nf6 $16) 15... Be5 {[%emt 0:01:24]} 16. Bxe5 {[%emt 0:06:26]} Nxe5 {[%emt 0:00:02]} 17. f4 {[%emt 0:12:26]} Ng6 {[%emt 0:01:40][%cal Re6d5]} (17... exd5 $2 18. cxd5 Nd7 (18... Bxd5 $2 19. Nf6+ gxf6 20. Bxd5 $18) 19. Rxc7 $18) 18. Qh5 {[%emt 0:04:16] Rfe1 would now be deadly.} f6 {[%emt 0:05:41]} (18... exd5 $142 19. cxd5 Ne7) 19. Rfe1 $36 {[%emt 0:04:39][%mdl 2048] Keeping Black busy. White is much more active.} Re8 {[%emt 0:07:51]} (19... exd5 $16 {was called for.} 20. cxd5 Qd8) 20. Bh3 {[%emt 0:04:11]} (20. dxe6 $18 {is more deadly. Strongly threatening f5.} Rxe6 21. f5 Rxe4 22. fxg6 (22. Bxe4 Ne5 $18) 22... hxg6 23. Qxg6) 20... e5 $2 {[%emt 0:07:16][%mdl 8192]} (20... exd5 $16 {might work better.} 21. cxd5 Bxd5) 21. f5 {[%emt 0:05:29]} (21. Bf5 $142 Nf8 22. fxe5 fxe5 23. Rf1) 21... Nh8 {[%emt 0:06:03] Black is weak on the light squares} (21... Nf8 {was necessary.} 22. g4 h6) 22. g4 $18 {[%emt 0:04:02]} h6 {[%emt 0:00:40]} (22... Nf7 23. g5 fxg5 24. Nxg5 Nxg5) 23. Rcd1 $2 {[%emt 0:04:25]} (23. g5 $18 {and White stays clearly on top.} hxg5 24. Bg4) 23... Nf7 {[%emt 0:03:32][%mdl 8192]} (23... Re7 $16 24. b4 (24. g5 hxg5 25. Bg4 Qe8 $16) 24... a5) 24. Bg2 $2 {[%emt 0:03:17]} (24. Nxf6+ gxf6 25. Qg6+ Kf8 26. g5 (26. Qxf6 Qd8 $17) 26... hxg5 27. Qxf6) 24... Re7 $2 {[%emt 0:04:32]} (24... Qd8 25. h4 Rf8) 25. Qg6 {[%emt 0:02:13]} Kf8 {[%emt 0:00:01]} 26. h4 {[%emt 0:00:23][%cal Bh2h4,Bh4g5][%mdl 32] [#] g5 is the strong threat.} Nd6 {[%emt 0:03:04]} (26... Qe8 $142 27. c5 bxc5) 27. g5 {[%emt 0:02:23]} hxg5 {[%emt 0:06:28]} 28. hxg5 {[%emt 0:00:24]} Nxe4 {[%emt 0:00:00]} 29. Rxe4 {[%emt 0:00:32]} Rf7 {[%emt 0:00:00]} 30. Rh4 {[%emt 0:01:14]} Ke7 {[%emt 0:00:00]} 31. Re1 {[%emt 0:00:53][%cal Oe1e5] Rxe5+! would kill now.} Qf8 {[%emt 0:00:00]} 32. Bf3 {[%emt 0:02:29]} Kd6 {[%emt 0:00:00]} (32... Bc8 $142 33. Bh5 Bd7 34. Qxf7+ Qxf7) 33. Rh7 $2 {[%emt 0:02:18]} (33. Rxe5 Kc5 34. a3) 33... Re7 {[%emt 0:00:00]} 34. Qh5 {[%emt 0:00:55]} Ra8 {[%emt 0:00:00]} 35. Be4 {[%emt 0:01:02]} fxg5 $2 {[%emt 0:00:00]} (35... Rb8 36. b4 c5 37. bxc5+ bxc5) 36. Qg6+ {[%emt 0:00:47]} (36. b4 $142) 36... Qf6 {[%emt 0:03:33]} 37. Rxg7 {[%emt 0:00:19]} Rf8 {[%emt 0:00:01]} (37... Qxg6 $16 38. Rxg6+ Kc5) 38. Rxe7 {[%emt 0:00:55]} ({Not} 38. Qxf6+ Rxf6 39. Rxe7 (39. Rxg5 Bc8 $16) 39... Kxe7 40. d6+ Kxd6 41. Bxb7 Rxf5 42. Bxa6 c6 $18) 38... Kxe7 {[%emt 0:01:05]} 39. d6+ $1 {[%emt 0:00:56]} Kxd6 {[%emt 0:00:42]} (39... cxd6 {was worth a try.} 40. Qxf6+ (40. Bxb7 Qxf5 41. Qxf5 Rxf5 $18) 40... Rxf6) 40. Rd1+ {[%emt 0:00:17]} Kc5 {[%emt 0:00:01]} 41. Qxf6 {[%emt 0:00:03]} Rxf6 {[%emt 0:00:07]} 42. Bxb7 {[%emt 0:00:19]} Rxf5 {[%emt 0:00:17]} 43. Bxa6 {[%emt 0:01:27][%mdl 4096] Endgame. KRB-KR} Kb4 {[%emt 0:01:03]} 44. Rc1 {[%emt 0:02:31]} e4 {[%emt 0:00:38][%cal Be5e4,Be4e3][%mdl 32]} 45. Bb7 {[%emt 0:00:16]} e3 {[%emt 0:00:30]} 46. Rc2 {[%emt 0:00:24] Inhibits Rf2.} Ka3 {[%emt 0:00:51]} (46... Kc5 {keeps fighting.} 47. Bg2 Kd4) 47. Be4 {[%emt 0:00:31]} Rf4 {[%emt 0:00:13]} 48. Bd5 {[%emt 0:00:28]} Rd4 $2 {[%emt 0:00:48]} (48... g4 49. Re2 Rd4 50. Rxe3 Kxa2) 49. Kf1 {[%emt 0:02:16]} b5 {[%emt 0:00:34][%cal Bb6b5,Bb5b4][%mdl 32]} 50. Ke2 {[%emt 0:00:24]} b4 {[%emt 0:00:21]} 51. Kxe3 {[%emt 0:00:20]} c5 {[%emt 0:00:16]} 52. Rg2 {[%emt 0:00:31][%cal Od5c6] aiming for Bc6!} Rd1 {[%emt 0:00:40]} 53. Bc6 {[%emt 0:00:24]} Re1+ {[%emt 0:00:30]} 54. Kd3 {[%emt 0:00:33][%cal Oc6b5] Intending Bb5! and mate.} Re5 {[%emt 0:00:12]} 55. Ba4 {[%emt 0:00:21]} Rf5 {[%emt 0:00:27]} 56. Ke4 {[%emt 0:00:13]} Rf4+ {[%emt 0:00:11]} 57. Kd5 {[%emt 0:00:36]} Rf5+ {[%emt 0:00:05]} 58. Kd6 {[%emt 0:00:06]} (58. Ke6 $142 Rf8 59. Rxg5 Rh8 60. Rxc5 Rh6+ 61. Kd7 Rh7+ 62. Kc6 Kxa2 63. Rd5 Rh6+ 64. Kb5) 58... g4 {[%emt 0:01:28]} 59. Rxg4 {[%emt 0:00:18] White wants to mate with Rg1.} Rh5 {[%emt 0:00:41]} 60. Kc6 {[%emt 0:00:09] White mates.} Re5 {[%emt 0:00:28]} 61. Rg6 {[%emt 0:00:10]} Rh5 {[%emt 0:00:47]} 62. Rd6 {[%emt 0:00:13]} Rh2 {[%emt 0:00:30]} 63. Kxc5 {[%emt 0:00:36]} Rxa2 {[%emt 0:00:24]} 64. Kb5 {[%emt 0:00:22]} Rh2 {[%emt 0:00:33]} 65. c5 {[%emt 0:00:23][%cal Bc4c5,Bc5c6,Bc6c7][%mdl 32]} Rh5 {[%emt 0:00:02]} 66. Kb6 {[%emt 0:00:15]} Rh2 {[%emt 0:00:56]} 67. c6 {[%emt 0:00:10]} Rd2 {[%emt 0:00:24]} 68. Rd7 {[%emt 0:00:14]} Rc2 {[%emt 0:00:37]} 69. Ra7 {[%emt 0:00:16]} Rc1 {[%emt 0:00:17]} 70. c7 {[%emt 0:00:11] Weighted Error Value: White=1.08/Black=1.10.  Loses game:     	---       	Black=4      Missed win:     	White=2     	---        Mistake:       	White=3     	Black=9      Inaccurate:     	White=3     	Black=4      OK:         	White=8     	Black=8      Best:        	White=3     	Black=3      Strong:       	White=1     	---        Brilliant:      	White=1     	---} 1-0